bitfinex/quotes_BTCUSD_20250308
["timestamp","ask_amount","ask_price","bid_price","bid_amount"]
[1741394065872,0.011506,86909.0,86906.0,0.1152]
[1741394066094,0.03162279,86910.0,86906.0,0.345333]
[1741394066346,0.03162279,86910.0,86906.0,0.1152]
[1741394066555,0.03162279,86910.0,86906.0,0.345331]
[1741394067061,0.04312879,86910.0,86906.0,0.1152]
[1741394067265,0.011506,86907.0,86906.0,0.1152]
[1741394067612,0.06117621,86910.0,86906.0,0.1152]
[1741394068027,0.04967021,86910.0,86907.0,0.23013]
[1741394068231,0.04967021,86910.0,86906.0,0.345331]
[1741394069642,0.04967021,86910.0,86906.0,0.1152]
[1741394070944,0.04984011,86910.0,86906.0,0.1152]
[1741394071872,0.04984011,86910.0,86906.0,0.345331]
[1741394072209,0.04984011,86910.0,86907.0,0.23013]
[1741394073242,0.04984011,86910.0,86906.0,0.345333]
[1741394073647,0.04984011,86910.0,86907.0,0.23013]
[1741394074084,0.04984011,86910.0,86909.0,0.323531]
[1741394075281,0.04984011,86910.0,86909.0,0.0819]
[1741394080164,0.12282909,86918.0,86909.0,0.0819]
[1741394080945,0.011505,86913.0,86909.0,0.0819]
[1741394081172,0.011505,86915.0,86909.0,0.0819]
[1741394082525,0.03959212,86918.0,86910.0,0.230122]
[1741394082982,0.0001698,86915.0,86910.0,0.230122]
[1741394083333,0.0001698,86915.0,86911.0,0.23012]
[1741394084344,0.0001698,86915.0,86912.0,0.230117]
[1741394085747,0.0001698,86915.0,86914.0,0.230112]
[1741394087490,0.0001698,86915.0,86914.0,0.220112]
[1741394087889,0.0001698,86915.0,86910.0,0.241628]
[1741394088096,0.0001698,86915.0,86909.0,0.312024]
[1741394088693,0.0001698,86915.0,86913.0,0.230112]
[1741394090123,0.00023701,86915.0,86913.0,0.230112]
[1741394091461,0.00023701,86915.0,86914.0,0.230112]
[1741394091791,0.00023701,86915.0,86914.0,0.241617]
[1741394093708,0.00023701,86915.0,86910.0,0.011506]
[1741394093917,0.011505,86913.0,86909.0,0.0819]
[1741394094072,0.00023701,86915.0,86909.0,0.312025]
[1741394094481,0.23034901,86915.0,86909.0,0.0819]
[1741394094680,0.241637,86907.0,86906.0,0.0003396]
[1741394096505,0.24167,86895.0,86889.0,0.11512]
[1741394096725,0.241684,86890.0,86889.0,0.11512]
[1741394096884,0.011509,86886.0,86882.0,0.11512]
[1741394097089,0.230192,86884.0,86882.0,0.11512]
[1741394097301,0.230192,86884.0,86873.0,0.14772]
[1741394097302,0.011509,86881.0,86873.0,0.14772]
[1741394097540,0.011509,86881.0,86880.0,0.1154598]
[1741394097869,0.011509,86881.0,86880.0,0.0003398]
[1741394098014,0.03933551,86881.0,86880.0,0.0003398]
[1741394098237,0.011509,86881.0,86880.0,0.0007293]
[1741394099257,0.02956234,86881.0,86880.0,0.0007293]
[1741394100230,0.05762014,86881.0,86880.0,0.0007293]
[1741394102370,0.05762014,86881.0,86870.0,0.0001699]
[1741394102371,0.241737,86871.0,86870.0,0.0001699]
[1741394102732,0.241737,86871.0,86870.0,0.00023708]
[1741394103536,0.011511,86871.0,86870.0,0.00023708]
[1741394103727,0.01151,86877.0,86870.0,0.00023708]
[1741394103728,0.01151,86880.0,86870.0,0.24197508]
[1741394103965,0.01151,86878.0,86872.0,0.230223]
[1741394104166,0.011509,86883.0,86873.0,0.011511]
[1741394104297,0.230197,86882.0,86874.0,0.230216]
[1741394104504,0.0280578,86881.0,86879.0,0.241714]
[1741394104870,0.011509,86885.0,86877.0,0.230204]
[1741394105055,0.011509,86883.0,86877.0,0.345364]
[1741394105489,0.01805345,86882.0,86877.0,0.345364]
[1741394106344,0.01805345,86882.0,86881.0,0.241708]
[1741394106546,0.01805345,86882.0,86881.0,0.324308]
[1741394108407,0.21576753,86899.0,86881.0,0.324308]
[1741394108611,0.011507,86897.0,86890.0,0.241681]
[1741394108815,0.02724659,86897.0,86893.0,0.230167]
[1741394109044,0.011508,86896.0,86889.0,0.241685]
[1741394109201,0.011508,86894.0,86888.0,0.11516]
[1741394109406,0.011508,86894.0,86888.0,0.34534]
[1741394109658,0.011508,86895.0,86889.0,0.230178]
[1741394110053,0.02803279,86897.0,86892.0,0.23017]
[1741394110270,0.011507,86897.0,86891.0,0.24168]
[1741394110642,0.03875089,86897.0,86891.0,0.24168]
[1741394110844,0.011507,86897.0,86891.0,0.24168]
[1741394111485,0.011507,86897.0,86892.0,0.23017]
[1741394111905,0.00863581,86899.0,86897.0,0.0826]
[1741394112116,0.01805047,86904.0,86897.0,0.0826]
[1741394112319,0.275977,86928.0,86914.0,0.230112]
[1741394112530,0.11460767,86920.0,86914.0,0.11512]
[1741394112731,0.011505,86917.0,86914.0,0.11512]
[1741394112865,0.011505,86916.0,86914.0,0.11512]
[1741394113215,0.0120643,86915.0,86914.0,0.11512]
[1741394113629,0.02080486,86915.0,86914.0,0.11512]
[1741394113833,0.03948656,86915.0,86914.0,0.11512]
[1741394113983,0.0120643,86915.0,86914.0,0.11512]
[1741394114802,0.0005593,86915.0,86914.0,0.11512]
[1741394116722,0.0186058,86915.0,86914.0,0.11512]
[1741394116922,0.04603642,86915.0,86914.0,0.11512]
[1741394117661,0.28765042,86915.0,86914.0,0.11512]
[1741394117902,0.28765042,86915.0,86890.0,0.241684]
[1741394117903,0.011507,86899.0,86890.0,0.241684]
[1741394118111,0.05470857,86915.0,86889.0,0.011508]
[1741394118112,0.011508,86891.0,86889.0,0.0761]
[1741394118356,0.011507,86897.0,86890.0,0.11512]
[1741394118522,0.230135,86906.0,86890.0,0.11512]
[1741394118523,0.230136,86906.0,86891.0,0.011508]
[1741394118761,0.01804928,86899.0,86897.0,0.230156]
[1741394119526,0.01804928,86899.0,86898.0,0.230154]
[1741394119777,0.01804928,86899.0,86895.0,0.011508]
[1741394119926,0.02955628,86899.0,86893.0,0.23131872]
[1741394120295,0.02955628,86899.0,86893.0,0.230168]
[1741394120654,0.01804928,86899.0,86895.0,0.230162]
[1741394120865,0.01804928,86899.0,86896.0,0.011508]
[1741394121070,0.01804928,86899.0,86897.0,0.230156]
[1741394121685,0.011507,86898.0,86888.0,0.011509]
[1741394121861,0.011507,86898.0,86866.0,0.460477]
[1741394121862,0.011507,86897.0,86885.0,0.011509]
[1741394122058,0.011507,86897.0,86891.0,0.230171]
[1741394122541,0.01804928,86899.0,86898.0,0.230154]
[1741394124368,0.01804928,86899.0,86898.0,0.241661]
[1741394125108,0.02955628,86899.0,86881.0,0.230197]
[1741394125323,0.02955628,86899.0,86893.0,0.230168]
[1741394125526,0.01804928,86899.0,86894.0,0.011508]
[1741394125893,0.01804928,86899.0,86895.0,0.011508]
[1741394126081,0.01804928,86899.0,86894.0,0.241673]
[1741394126470,0.01804928,86899.0,86894.0,0.241671]
[1741394126887,0.01804928,86899.0,86898.0,0.230154]
[1741394127063,0.01804928,86899.0,86895.0,0.011508]
[1741394127493,0.01804928,86899.0,86897.0,0.241663]
[1741394127691,0.01804928,86899.0,86898.0,0.230154]
[1741394127917,0.230105,86917.0,86900.0,0.011507]
[1741394128120,0.03666207,86915.0,86910.0,0.011506]
[1741394128276,0.03666207,86915.0,86911.0,0.356706]
[1741394128502,0.03666207,86915.0,86912.0,0.230116]
[1741394128703,0.03666207,86915.0,86911.0,0.11508]
[1741394128902,0.04816707,86915.0,86911.0,0.11508]
[1741394129303,0.011505,86914.0,86911.0,0.11508]
[1741394129751,0.04816707,86915.0,86911.0,0.11508]
[1741394129946,0.03666207,86915.0,86911.0,0.11508]
[1741394130533,0.011505,86913.0,86911.0,0.11508]
[1741394131713,0.00567526,86912.0,86911.0,0.11508]
[1741394132311,0.011507,86897.0,86887.0,0.230183]
[1741394132436,0.011507,86897.0,86894.0,0.11508]
[1741394132648,0.01716511,86897.0,86894.0,0.11508]
[1741394133015,0.24732211,86897.0,86894.0,0.11508]
[1741394133217,0.32782211,86897.0,86882.0,0.14776]
[1741394133691,0.37722211,86897.0,86875.0,0.0001699]
[1741394133832,0.85552464,86897.0,86875.0,0.0001699]
[1741394134649,0.70798564,86897.0,86875.0,0.0001699]
[1741394135498,0.72603941,86897.0,86875.0,0.0001699]
[1741394135834,0.72603941,86897.0,86896.0,8e-07]
[1741394135996,0.41847741,86897.0,86896.0,8e-07]
[1741394138373,0.33797741,86897.0,86896.0,8e-07]
[1741394139704,0.2882121,86897.0,86896.0,8e-07]
[1741394143223,0.0465481,86897.0,86896.0,8e-07]
[1741394143441,0.04000133,86897.0,86896.0,0.0783008]
[1741394143633,0.27015833,86897.0,86896.0,8e-07]
[1741394144539,0.02849433,86897.0,86896.0,8e-07]
[1741394145164,0.02849433,86897.0,86896.0,0.2301608]
[1741394145355,0.03470853,86897.0,86896.0,8e-07]
[1741394145678,0.04000105,86897.0,86896.0,8e-07]
[1741394145883,0.27015805,86897.0,86896.0,8e-07]
[1741394146265,0.28820828,86897.0,86896.0,8e-07]
[1741394148088,0.241708,86881.0,86880.0,0.1152499]
[1741394148389,0.24700585,86881.0,86880.0,0.1152499]
[1741394148604,0.24700585,86881.0,86880.0,0.0001699]
[1741394149335,0.03485963,86881.0,86880.0,0.00023708]
[1741394149448,0.26505863,86881.0,86880.0,0.00023708]
[1741394150283,0.03485963,86881.0,86880.0,0.00023708]
[1741394150667,0.26505863,86881.0,86880.0,0.00023708]
[1741394153165,0.03485963,86881.0,86880.0,0.00023708]
[1741394153499,0.26505863,86881.0,86880.0,0.00023708]
[1741394154538,0.03485963,86881.0,86880.0,0.00023708]
[1741394155296,0.2735237,86881.0,86880.0,0.00023708]
[1741394156771,0.25547092,86881.0,86880.0,0.00023708]
[1741394158174,0.241723,86876.0,86875.0,0.0001699]
[1741394158402,0.24763252,86876.0,86875.0,0.0001699]
[1741394159292,0.011511,86871.0,86870.0,0.0001699]
[1741394159498,0.24175,86866.0,86865.0,0.0051698]
[1741394159711,0.24766206,86866.0,86865.0,0.0051698]
[1741394161891,0.27118823,86866.0,86865.0,0.0051698]
[1741394163364,0.27118823,86866.0,86865.0,1e-08]
[1741394166440,0.28924618,86866.0,86865.0,1e-08]
[1741394175475,0.04094923,86866.0,86865.0,0.07730001]
[1741394175826,0.27118823,86866.0,86865.0,0.07730001]
[1741394178142,0.27118823,86866.0,86865.0,1e-08]
[1741394178569,0.28924493,86866.0,86865.0,1e-08]
[1741394180596,0.28924493,86866.0,86865.0,0.48653401]
[1741394180597,0.02396876,86866.0,86865.0,0.48653401]
[1741394180792,0.0180567,86866.0,86865.0,0.25629201]
[1741394181015,0.0180567,86866.0,86865.0,0.24478001]
[1741394181241,0.0180567,86866.0,86865.0,0.48653401]
[1741394182424,0.0003398,86870.0,86869.0,0.241742]
[1741394182765,0.0003398,86870.0,86869.0,0.323742]
[1741394184273,0.2420798,86870.0,86869.0,0.082]
[1741394184470,0.2420798,86870.0,86869.0,0.19708]
[1741394184673,0.24834873,86870.0,86869.0,0.19708]
[1741394185284,0.24175,86866.0,86865.0,1e-08]
[1741394185701,0.24802802,86866.0,86865.0,1e-08]
[1741394185902,0.00627802,86866.0,86865.0,0.24175401]
[1741394186240,0.011511,86869.0,86865.0,1e-08]
[1741394186382,0.011511,86866.0,86865.0,1e-08]
[1741394186577,0.011511,86869.0,86865.0,1e-08]
[1741394186783,0.01778365,86868.0,86865.0,1e-08]
[1741394188569,0.011511,86866.0,86865.0,1e-08]
[1741394188880,0.01778341,86866.0,86865.0,1e-08]
[1741394189481,0.01778341,86866.0,86865.0,0.11508001]
[1741394189726,0.24802241,86866.0,86865.0,0.11508001]
[1741394189927,0.01778341,86866.0,86865.0,0.11508001]
[1741394190225,0.24802241,86866.0,86865.0,0.11508001]
[1741394190634,0.01778341,86866.0,86865.0,0.11508001]
[1741394191991,0.24802241,86866.0,86865.0,0.11508001]
[1741394192372,0.01778341,86866.0,86865.0,0.11508001]
[1741394193149,0.24802241,86866.0,86865.0,0.11508001]
[1741394193695,0.24836221,86866.0,86865.0,0.11508001]
[1741394193911,0.01812321,86866.0,86865.0,1e-08]
[1741394194051,0.24836221,86866.0,86865.0,1e-08]
[1741394195982,0.24785221,86866.0,86865.0,1e-08]
[1741394201828,0.26590907,86866.0,86865.0,1e-08]
[1741394202792,0.24785221,86866.0,86865.0,1e-08]
[1741394203169,0.01761321,86866.0,86865.0,1e-08]
[1741394203371,0.24785221,86866.0,86865.0,1e-08]
[1741394204554,0.24785221,86866.0,86865.0,0.08120001]
[1741394204967,0.24785221,86866.0,86865.0,1e-08]
[1741394206001,0.26590872,86866.0,86865.0,1e-08]
[1741394208250,0.01999567,86866.0,86865.0,1e-08]
[1741394208475,0.02418544,86866.0,86865.0,1e-08]
[1741394208655,0.26593544,86866.0,86865.0,1e-08]
[1741394214685,0.01763993,86866.0,86865.0,1e-08]
[1741394215031,0.24787893,86866.0,86865.0,1e-08]
[1741394217071,0.24821873,86866.0,86865.0,1e-08]
[1741394217371,0.25063772,86866.0,86865.0,1e-08]
[1741394217582,0.26869427,86866.0,86865.0,1e-08]
[1741394219159,0.03845527,86866.0,86865.0,1e-08]
[1741394219376,0.02694427,86866.0,86865.0,1e-08]
[1741394219592,0.01839635,86866.0,86865.0,0.28755401]
[1741394219756,0.230219,86874.0,86866.0,0.230237]
[1741394219952,0.01805535,86867.0,86866.0,0.230237]
[1741394220351,0.02655858,86867.0,86866.0,0.230237]
[1741394220556,0.02655858,86867.0,86866.0,0.094011]
[1741394220767,0.02282835,86879.0,86878.0,0.01151]
[1741394221015,0.00856399,86879.0,86878.0,0.11504]
[1741394221594,0.00856399,86879.0,86878.0,0.345247]
[1741394221946,0.00856399,86879.0,86878.0,0.11504]
[1741394221947,0.01151,86879.0,86878.0,0.11504]
[1741394222363,0.02006491,86879.0,86878.0,0.11504]
[1741394222677,0.09905002,86882.0,86878.0,0.11504]
[1741394222879,0.25454737,86879.0,86878.0,0.11515691]
[1741394223085,0.01151,86879.0,86878.0,0.11515691]
[1741394223298,0.02432725,86879.0,86878.0,0.11515691]
[1741394223587,0.01151,86879.0,86878.0,0.11515691]
[1741394223735,0.02433632,86879.0,86878.0,0.11515691]
[1741394223936,0.01282632,86879.0,86878.0,0.11515691]
[1741394224162,0.25454132,86879.0,86878.0,0.11515691]
[1741394225150,0.25454132,86879.0,86878.0,0.00011691]
[1741394226211,0.27259564,86879.0,86878.0,0.00011691]
[1741394229198,0.04239064,86879.0,86878.0,0.00011691]
[1741394229398,0.27259564,86879.0,86878.0,0.00011691]
[1741394229609,0.03088064,86879.0,86878.0,0.00028681]
[1741394229831,0.03088064,86879.0,86878.0,0.08208681]
[1741394230855,0.04239064,86879.0,86878.0,0.08208681]
[1741394231255,0.03088064,86879.0,86878.0,0.08208681]
[1741394231450,0.03088064,86879.0,86878.0,0.31229381]
[1741394231681,0.01282632,86879.0,86878.0,0.08208681]
[1741394231882,0.0234336,86880.0,86878.0,0.08208681]
[1741394232018,0.0349436,86880.0,86878.0,0.08208681]
[1741394232227,0.01286036,86879.0,86878.0,0.08208681]
[1741394233809,0.02437036,86879.0,86878.0,0.08208681]
[1741394235877,0.04242421,86879.0,86878.0,0.08208681]
[1741394237398,0.04242421,86879.0,86878.0,0.09359681]
[1741394237399,0.03091421,86879.0,86878.0,0.09359681]
[1741394237547,0.01805385,86879.0,86878.0,0.37190381]
[1741394241141,0.01681546,86879.0,86878.0,0.37190381]
[1741394241491,0.0003398,86882.0,86881.0,0.372708]
[1741394242286,0.0003398,86882.0,86881.0,0.40221505]
[1741394242665,0.0003396,86897.0,86896.0,0.372668]
[1741394242866,0.0003396,86897.0,86896.0,0.487628]
[1741394243579,6e-07,86897.0,86896.0,0.512628]
[1741394243779,0.10308094,86912.0,86911.0,0.372626]
[1741394244026,0.10308094,86912.0,86911.0,0.635346]
[1741394244783,0.011502,86936.0,86912.0,0.011505]
[1741394244784,0.10308094,86931.0,86912.0,0.011505]
[1741394244993,0.12631303,86931.0,86912.0,0.01265531]
[1741394245195,0.0007291,86913.0,86912.0,0.01265531]
[1741394248351,0.0007291,86913.0,86912.0,0.09025531]
[1741394249933,0.0007291,86913.0,86912.0,0.32037231]
[1741394250130,0.0007291,86913.0,86912.0,0.319222]
[1741394258190,0.00863603,86939.0,86936.0,0.230053]
[1741394258528,0.00863603,86939.0,86926.0,0.011504]
[1741394258529,0.02616338,86944.0,86943.0,0.241536]
[1741394258721,0.01414655,86953.0,86948.0,0.230022]
[1741394258901,0.01414655,86953.0,86947.0,0.230023]
[1741394259097,0.01426342,86953.0,86947.0,0.230023]
[1741394259281,0.01321632,86952.0,86947.0,0.230023]
[1741394259486,0.01321632,86952.0,86948.0,0.23002]
[1741394259707,0.02581701,86952.0,86944.0,0.230033]
[1741394259929,0.01426342,86953.0,86946.0,0.230027]
[1741394260128,0.01426342,86953.0,86947.0,0.23117201]
[1741394260325,0.01321934,86952.0,86947.0,0.230022]
[1741394260767,0.01426342,86953.0,86943.0,0.203121]
[1741394260958,0.02576342,86953.0,86944.0,0.00115001]
[1741394261161,0.011501,86946.0,86943.0,0.11492]
[1741394261672,0.0132194,86945.0,86943.0,0.11492]
[1741394262035,0.0115,86949.0,86943.0,0.11492]
[1741394262231,0.01322844,86948.0,86943.0,0.11492]
[1741394262958,0.01804036,86947.0,86943.0,0.11492]
[1741394263164,0.01804036,86947.0,86944.0,0.230032]
[1741394263682,0.01804036,86947.0,86943.0,0.344953]
[1741394264524,0.01804036,86947.0,86943.0,0.11492]
[1741394264931,0.01322241,86946.0,86943.0,0.11492]
[1741394265152,0.01821016,86947.0,86943.0,0.344953]
[1741394265502,0.01821016,86947.0,86943.0,0.11492]
[1741394265708,0.01821016,86947.0,86943.0,0.344953]
[1741394265911,0.01322241,86946.0,86944.0,0.230032]
[1741394266153,0.01821016,86947.0,86944.0,0.230032]
[1741394266357,0.01821016,86947.0,86946.0,0.241528]
[1741394266604,0.0001698,86947.0,86946.0,0.241528]
[1741394268786,0.0001698,86947.0,86943.0,0.11492]
[1741394269313,0.01326585,86946.0,86943.0,0.11492]
[1741394269518,0.01326585,86946.0,86943.0,0.34610506]
[1741394269677,0.0001698,86947.0,86943.0,0.344955]
[1741394270802,0.01820929,86947.0,86943.0,0.344955]
[1741394271611,0.011501,86946.0,86943.0,0.11492]
[1741394271863,0.02476384,86945.0,86943.0,0.11492]
[1741394272177,0.01326284,86945.0,86943.0,0.11492]
[1741394272456,0.01820929,86947.0,86943.0,0.11492]
[1741394272657,0.01326585,86946.0,86943.0,0.11492]
[1741394272860,0.01820929,86947.0,86943.0,0.11492]
[1741394273035,0.01326585,86946.0,86943.0,0.11492]
[1741394274961,0.01820929,86947.0,86943.0,0.11492]
[1741394275340,0.01326585,86946.0,86943.0,0.11492]
[1741394278938,0.230043,86940.0,86939.0,0.3220394]
[1741394279090,0.241545,86940.0,86939.0,0.0003394]
[1741394279291,0.254904,86940.0,86939.0,0.0003394]
[1741394279902,0.013359,86940.0,86939.0,0.0003394]
[1741394280105,0.013359,86940.0,86939.0,0.2303854]
[1741394280431,0.0001698,86947.0,86939.0,0.0003394]
[1741394280654,0.0001698,86947.0,86946.0,0.241528]
[1741394280819,0.0001698,86947.0,86946.0,0.439368]
[1741394286063,0.0001698,86947.0,86946.0,0.427867]
[1741394286247,0.0001698,86947.0,86946.0,0.439368]
[1741394287550,0.01820725,86947.0,86946.0,0.439368]
[1741394287750,0.01820725,86947.0,86940.0,0.0453]
[1741394287949,0.02970825,86947.0,86941.0,0.425679]
[1741394288154,0.01820725,86947.0,86941.0,0.425679]
[1741394288356,0.01105461,86946.0,86945.0,0.23003]
[1741394288713,0.01820725,86947.0,86946.0,0.241528]
[1741394290719,0.01820725,86947.0,86946.0,0.230027]
[1741394291119,0.01820725,86947.0,86946.0,0.241528]
[1741394293663,0.0001698,86947.0,86946.0,0.241528]
[1741394293868,0.0001698,86947.0,86946.0,0.287528]
[1741394298151,0.01820748,86947.0,86946.0,0.609228]
[1741394302794,0.01820748,86947.0,86946.0,0.3217]
[1741394302952,0.01820748,86947.0,86946.0,0.4365]
[1741394303152,0.0292644,86947.0,86946.0,0.678028]
[1741394303357,0.02970848,86947.0,86946.0,0.4365]
[1741394303760,0.25973348,86947.0,86946.0,0.4365]
[1741394303981,0.04080777,86947.0,86946.0,0.4365]
[1741394304310,0.01126909,86947.0,86946.0,0.1148]
[1741394305198,0.02277009,86947.0,86944.0,0.1148]
[1741394305980,0.01126909,86947.0,86944.0,0.1148]
[1741394306187,0.01126909,86947.0,86945.0,0.23003]
[1741394306593,0.0001698,86947.0,86944.0,0.344831]
[1741394307354,0.0001698,86947.0,86944.0,0.1148]
[1741394307563,0.01110178,86946.0,86944.0,0.1148]
[1741394307775,0.0001698,86947.0,86946.0,0.230027]
[1741394308666,0.0001698,86947.0,86945.0,0.23003]
[1741394308869,0.01109398,86946.0,86944.0,0.344832]
[1741394309044,0.0001698,86947.0,86944.0,0.344832]
[1741394309650,0.01109398,86946.0,86944.0,0.344832]
[1741394310053,0.01109398,86946.0,86945.0,0.241531]
[1741394310354,0.0001698,86947.0,86946.0,0.241528]
[1741394311160,0.0001698,86947.0,86946.0,0.287028]
[1741394316009,0.0001698,86947.0,86946.0,0.608728]
[1741394317939,0.0001698,86947.0,86946.0,0.683728]
[1741394325232,0.0001698,86947.0,86946.0,0.633728]
[1741394325898,0.0001698,86947.0,86946.0,0.645229]
[1741394327099,0.01820635,86947.0,86946.0,0.645229]
[1741394327882,0.01820635,86947.0,86946.0,1.179229]
[1741394331644,3.5e-07,86947.0,86946.0,1.179229]
[1741394331774,3.5e-07,86947.0,86946.0,1.204229]
[1741394331975,0.00540667,86953.0,86951.0,0.025]
[1741394332181,0.00540667,86953.0,86952.0,0.37006064]
[1741394332360,0.00540667,86953.0,86952.0,0.368911]
[1741394335815,0.00540667,86953.0,86952.0,0.516511]
[1741394336015,0.02344316,86953.0,86952.0,0.516511]
[1741394336379,0.02344316,86953.0,86952.0,0.468811]
[1741394336784,0.02344316,86953.0,86952.0,0.4693]
[1741394337002,0.02344316,86953.0,86952.0,0.825531]
[1741394337982,0.05710025,86970.0,86956.0,0.0115]
[1741394338200,0.011498,86969.0,86961.0,0.229988]
[1741394338405,0.011498,86969.0,86962.0,0.11472]
[1741394338946,0.011498,86968.0,86962.0,0.11472]
[1741394340357,0.011498,86967.0,86962.0,0.11472]
[1741394340701,0.011498,86966.0,86962.0,0.11472]
[1741394341373,0.011498,86967.0,86962.0,0.11472]
[1741394341759,0.01803578,86966.0,86962.0,0.11472]
[1741394342270,0.011498,86967.0,86962.0,0.11472]
[1741394342881,0.04524489,86970.0,86962.0,0.11472]
[1741394343081,0.011498,86966.0,86962.0,0.11472]
[1741394344261,0.011498,86965.0,86962.0,0.11472]
[1741394344656,0.011498,86966.0,86962.0,0.11472]
[1741394344896,0.011498,86969.0,86962.0,0.11472]
[1741394345102,0.30003305,86973.0,86965.0,0.011498]
[1741394345103,0.03374689,86970.0,86965.0,0.011498]
[1741394345494,0.03437205,86973.0,86965.0,0.011498]
[1741394345669,0.011497,86972.0,86963.0,0.229982]
[1741394345875,0.0226762,86972.0,86963.0,0.229982]
[1741394346619,0.05584299,86972.0,86963.0,0.011499]
[1741394346846,0.05584299,86972.0,86964.0,0.22998]
[1741394347371,0.04434599,86972.0,86965.0,0.229977]
[1741394348002,0.05584299,86972.0,86964.0,0.241479]
[1741394348604,0.05584299,86972.0,86964.0,0.22998]
[1741394349520,0.011498,86971.0,86963.0,0.229982]
[1741394349726,0.01117875,86970.0,86963.0,0.229982]
[1741394350340,0.241481,86963.0,86962.0,0.1150592]
[1741394350677,0.02267781,86963.0,86962.0,0.1150592]
[1741394350996,0.02921486,86963.0,86962.0,0.1150592]
[1741394351423,0.04071386,86963.0,86962.0,0.1150592]
[1741394352492,0.02921486,86963.0,86962.0,0.1150592]
[1741394353012,0.011498,86970.0,86962.0,0.3565432]
[1741394353269,0.04519633,86972.0,86962.0,0.1150592]
[1741394353623,0.02313852,86973.0,86970.0,0.229961]
[1741394353742,0.02313852,86973.0,86970.0,0.229963]
[1741394354156,0.02313852,86973.0,86969.0,0.241459]
[1741394354946,0.02313852,86973.0,86968.0,0.229967]
[1741394355439,0.00931578,86972.0,86967.0,0.229972]
[1741394355649,0.00931578,86972.0,86968.0,0.229968]
[1741394355850,0.02313852,86973.0,86968.0,0.229968]
[1741394356049,0.00931277,86971.0,86965.0,0.229976]
[1741394356227,0.02081278,86972.0,86966.0,0.00114974]
[1741394356406,0.011498,86971.0,86966.0,0.00114974]
[1741394356612,0.011498,86970.0,86966.0,0.00114974]
[1741394356857,0.02080776,86970.0,86966.0,0.00114974]
[1741394357010,0.02080776,86970.0,86964.0,0.00114975]
[1741394357456,0.02080776,86970.0,86964.0,0.23112875]
[1741394357766,0.02080776,86970.0,86964.0,0.229979]
[1741394357962,0.03884295,86970.0,86964.0,0.229979]
[1741394358340,0.02734495,86970.0,86964.0,0.229979]
[1741394358540,0.02734495,86970.0,86965.0,0.229977]
[1741394358738,0.01803519,86970.0,86965.0,0.229977]
[1741394358942,0.00932107,86969.0,86966.0,0.00114975]
[1741394359143,0.00932107,86969.0,86965.0,0.229976]
[1741394359349,0.00932107,86969.0,86966.0,0.00114976]
[1741394359545,0.01803519,86970.0,86966.0,0.00114976]
[1741394360460,0.01803519,86970.0,86963.0,0.00114974]
[1741394360660,0.01803519,86970.0,86967.0,0.3217]
[1741394360960,0.00932107,86969.0,86967.0,0.3217]
[1741394361360,0.01803519,86970.0,86967.0,0.3217]
[1741394361785,0.00932371,86969.0,86967.0,0.3217]
[1741394362163,0.01803519,86970.0,86967.0,0.3217]
[1741394362366,0.02953319,86970.0,86967.0,0.3217]
[1741394362565,0.00932156,86969.0,86967.0,0.3217]
[1741394362996,0.01803519,86970.0,86967.0,0.3217]
[1741394363361,0.00932156,86969.0,86967.0,0.3217]
[1741394363568,0.01803519,86970.0,86967.0,0.3217]
[1741394364220,0.00932156,86969.0,86967.0,0.3217]
[1741394364628,0.01803519,86970.0,86967.0,0.3217]
[1741394365124,0.00932156,86969.0,86967.0,0.3217]
[1741394365349,0.01803519,86970.0,86967.0,0.3217]
[1741394365503,0.00931854,86969.0,86967.0,0.3217]
[1741394365710,0.01803519,86970.0,86967.0,0.3217]
[1741394365912,0.00931854,86969.0,86967.0,0.3217]
[1741394366128,0.01803519,86970.0,86967.0,0.3217]
[1741394366512,0.00931854,86969.0,86967.0,0.3217]
[1741394366936,0.0001696,86972.0,86970.0,0.229964]
[1741394367160,0.0001696,86972.0,86971.0,0.23111065]
[1741394367392,0.0001696,86972.0,86971.0,0.229961]
[1741394367671,0.0001696,86972.0,86971.0,0.24127865]
[1741394368118,0.0001696,86972.0,86971.0,0.22978065]
[1741394368327,0.0001696,86972.0,86970.0,0.229964]
[1741394368547,0.0001696,86972.0,86971.0,0.00114964]
[1741394368732,0.0001696,86972.0,86971.0,0.23111064]
[1741394368929,0.0001696,86972.0,86971.0,0.229961]
[1741394369136,0.0001696,86972.0,86971.0,0.241459]
[1741394370129,0.0001696,86972.0,86970.0,0.229964]
[1741394370281,0.0001696,86972.0,86971.0,0.00114966]
[1741394371201,0.0001696,86972.0,86971.0,0.23111066]
[1741394371543,0.0001696,86972.0,86971.0,0.229961]
[1741394371717,0.0001696,86972.0,86970.0,0.229964]
[1741394371946,0.0001696,86972.0,86971.0,0.00114966]
[1741394372564,0.0001696,86972.0,86971.0,0.32284966]
[1741394372725,0.0001696,86972.0,86971.0,0.3217]
[1741394373891,0.0001696,86972.0,86971.0,0.691459]
[1741394377552,0.229899,86995.0,86982.0,0.22993]
[1741394377751,0.23940882,86994.0,86983.0,0.11464]
[1741394377955,0.011495,86992.0,86983.0,0.11464]
[1741394378170,0.00938202,86991.0,86984.0,0.082]
[1741394378374,0.00938202,86991.0,86984.0,0.311927]
[1741394378912,0.04211487,86994.0,86984.0,0.311926]
[1741394379112,0.04211487,86994.0,86984.0,0.082]
[1741394379113,0.00937901,86990.0,86984.0,0.082]
[1741394379342,0.04211487,86994.0,86984.0,0.09464552]
[1741394379499,0.00937902,86989.0,86987.0,0.229917]
[1741394379695,0.04211487,86994.0,86988.0,0.00114951]
[1741394380060,0.04211487,86994.0,86988.0,0.05864451]
[1741394380061,0.00941387,86993.0,86988.0,0.05864451]
[1741394380265,0.00941387,86993.0,86990.0,0.229911]
[1741394380543,0.01803015,86993.0,86989.0,0.551611]
[1741394380733,0.01803015,86993.0,86990.0,0.00114944]
[1741394381032,0.01803015,86993.0,86989.0,0.551611]
[1741394381267,0.01803015,86993.0,86990.0,0.00114944]
[1741394381715,0.01803015,86993.0,86992.0,0.241401]
[1741394381925,0.01803015,86993.0,86992.0,0.321601]
[1741394383906,0.01803015,86993.0,86992.0,0.469201]
[1741394384236,0.241354,87009.0,86992.0,0.469201]
[1741394384237,0.011492,87016.0,86992.0,0.457706]
[1741394384448,0.229845,87015.0,87003.0,0.229876]
[1741394384652,0.23931507,87015.0,87004.0,0.11578925]